Cogmind - Beta 15 @@@ ROGUE MODE // 2025.08.13 @ 17:49:07 Player: Singularius Result: Destroyed by 8R-AWN with 8R-AWN's Boregun Performance ------------- Evolutions (0) 0 Regions Visited (3) 600 Robots Destroyed (23) 115 Value Destroyed (354) 354 Prototype IDs (26) 520 Alien Tech Used (0) 0 Bonus (259) 259 TOTAL SCORE: 1848 Bonus ------- Aligned with FarCom 300 Friendly Fire -41 Cogmind --------- Core Integrity 0/250 Matter 253/300 Energy 27/100 System Corruption 0% Temperature Cool (0) Movement Core (650) Ox12 Location -10/Exiles Parts ------- > --- POWER (1) -------- (None) > --- PROPULSION (2) --- (None) > --- UTILITY (2) ------ Improved Heat Sink Large Storage Unit > --- WEAPON (2) ------- YOLO Cannon > --- INVENTORY (15) --- Ion Engine Ion Engine Seismic Detector Light Armor Plating Splice Drone Bay (6/6) Medium Laser Medium Laser Light Cannon Peak State ------------ > --- POWER ------------ Light Nuclear Core > --- PROPULSION ------- Light Treads > --- UTILITY ---------- Improved Heat Sink Large Storage Unit > --- WEAPON ----------- YOLO Cannon > --- INVENTORY -------- Ion Engine Ion Engine Seismic Detector Light Armor Plating Splice Drone Bay Medium Laser Medium Laser Light Cannon [Rating: 29] Favorites ----------- Power Ion Engine Engine Ion Engine Power Core Light Nuclear Core Propulsion Light Treads Treads Light Treads Utility Seismic Detector Device Seismic Detector Storage Small Storage Unit Protection Light Armor Plating Weapon Medium Laser Energy Gun Medium Laser Energy Cannon YOLO Cannon Build | -11 -10 -10 -10 ------- Run | Yrd Mat Min Exi Slots Evolved . | . . . . Power . | . . . . Propulsion . | . . . . Utility . | . . . . Weapon . | . . . . Parts Attached 18 | 7 3 2 6 Power 3 | 1 1 . 1 Engine 2 | 1 1 . . Core 1 | . . . 1 Reactor . | . . . . Propulsion 5 | 2 . 1 2 Treads 5 | 2 . 1 2 Leg . | . . . . Wheel . | . . . . Hover . | . . . . Flight . | . . . . Utility 7 | 2 2 1 2 Device 3 | 1 . 1 1 Storage 2 | 1 . . 1 Processor . | . . . . Hackware . | . . . . Protection 2 | . 2 . . Artifact . | . . . . Weapon 3 | 2 . . 1 Energy Gun 2 | 2 . . . Energy Cannon 1 | . . . 1 Ballistic Gun . | . . . . Ballistic Cannon . | . . . . Launcher . | . . . . Special Weapon . | . . . . Impact Weapon . | . . . . Slashing Weapon . | . . . . Piercing Weapon . | . . . . Special Melee Weapon . | . . . . Unidentified Prototypes 1 | . . 1 . Parts Lost 5 | . . . 5 Power 1 | . . . 1 Propulsion 4 | . . . 4 Utility . | . . . . Weapon . | . . . . Highest Loss Streak 3 | . . . 3 To Critical Strikes 4 | . . . 4 Average Backups 7 | 2 7 7 8 Power 1 | . 1 2 2 Propulsion 2 | 1 3 2 1 Utility 2 | . 1 2 3 Weapon 1 | . 1 1 1 Tool/Special . | . . . . Unused Backups 9 | . 6 . 3 Power 2 | . 1 . 1 Propulsion 4 | . 4 . . Utility 1 | . . . 1 Weapon 2 | . 1 . 1 Tool/Special . | . . . . Average Slot Usage (%) 98 | . 99 100 95 Engine 13 | . 14 14 12 Treads 27 | . 27 28 26 Device 12 | . 11 13 14 Storage 14 | . 14 14 14 Protection 1 | . 2 . . Energy Gun 26 | . 28 28 22 Peak Build Rating 29 | 7 8 14 29 Average Rating 9 | 4 7 8 13 On Entrance 5 | . 7 8 8 Naked Turns . | . . . . Heaviest Build 44 | 13 17 22 44 Greatest Support 40 | 40 40 40 40 Greatest Overweight (x) 3 | 3 . . 1 Average Overweight (x) . | . . . . Largest Inventory Capacity 15 | 8 8 8 15 Average Capacity 9 | 7 8 8 13 Most Carried 11 | 4 8 8 11 Average Carried 8 | 2 7 7 9 Final Capacity 15 | 8 8 8 15 Final Carried 8 | 4 8 8 8 Class Distribution -------------------- 100% | Mutant Dominant Class ---------------- Mutant | -10/Materials Mutant | -10/Mines Mutant | -10/Exiles Resources | -11 -10 -10 -10 ----------- Run | Yrd Mat Min Exi Matter Collected 362 | 246 94 14 8 Remotely . | . . . . Salvage Created 445 | 26 273 39 107 Parts 51 | 6 17 3 25 Haulers Intercepted . | . . . . Recyclers Shooed 1 | . . 1 . Parts Field Recycled . | . . . . Retrieved Matter . | . . . . Parts Self-Destructed . | . . . . Prevented . | . . . . Kills | -11 -10 -10 -10 ------- Run | Yrd Mat Min Exi Combat Hostiles Destroyed 19 | . 9 3 7 Guns 11 | . 8 3 . Cannons 1 | . . . 1 AOE 6 | . . . 6 Classes Destroyed 5 | 1 2 . 2 Tunneler 2 | 2 . . . Swarmer 6 | . 3 3 . Grunt 6 | . 6 . . Zionite 6 | . . . 6 Assembled 7 | . . . 7 Best Kill Streak 7 | 2 3 3 7 Combat Bots Only 6 | . 3 3 6 Max Kills in Single Turn 4 | 1 1 1 4 Gunslinging . | . . . . Exploded 3 | . . . 3 Melee . | . . . . Uniques/NPCs Destroyed 3 | . . . 3 EX-BIN (-10/Exiles) EX-HEX (-10/Exiles) EX-DEC (-10/Exiles) Combat | -11 -10 -10 -10 -------- Run | Yrd Mat Min Exi Hostile Shots Fired 143 | . 42 22 79 Missed 37 | . 9 3 25 Hits 106 | . 33 19 54 Projectile 106 | . 33 19 54 Critical Strikes 25 | . . . 25 Damage Taken 1460 | . 395 152 913 Core 263 | . 38 22 203 Absorbed by Shields . | . . . . Regen/Repaired (Parts) 117 | . 117 . . Core Remaining (%) 100 | 100 . . . Volleys Fired 64 | 6 25 8 25 Largest 2 | 2 2 2 1 Hottest 100 | 100 100 100 100 Shots Fired 103 | 12 50 16 25 Gun 78 | 12 50 16 . Cannon 25 | . . . 25 Launcher . | . . . . Special . | . . . . Kinetic . | . . . . Thermal 103 | 12 50 16 25 Explosive . | . . . . Electromagnetic . | . . . . Robot Hit Streak 8 | 3 8 8 6 Robot Miss Streak 4 | 1 2 4 2 Penetration Max . | . . . . Secondary Targets 3 | . 1 2 . Max Gunslinging Chain 1 | . 1 1 . Shots Hit Robots 60 | 8 31 8 13 Core Hits 41 | 2 15 3 21 Critical Kills . | . . . . Critical Parts Destroyed . | . . . . Critical Strikes 8 | 1 6 1 . Burn 8 | 1 6 1 . Melee Attacks . | . . . . Impact . | . . . . Slashing . | . . . . Piercing . | . . . . Sneak Attacks . | . . . . Combat Hostiles . | . . . . Follow-up Attacks . | . . . . Damage Inflicted 2495 | 100 396 107 1892 Guns 589 | 100 388 101 . Cannons 463 | . . . 463 Explosions 1429 | . . . 1429 Melee . | . . . . Ramming 14 | . 8 6 . Kinetic . | . . . . Thermal 2481 | 100 388 101 1892 Explosive . | . . . . Electromagnetic . | . . . . Impact . | . . . . Slashing . | . . . . Piercing . | . . . . Highest Corruption . | . . . . Average Corruption . | . . . . Corruption Purged . | . . . . Corruption Blocked . | . . . . Overload Shots . | . . . . Overflow Damage 164 | . . . 164 Projectiles 91 | . . . 91 Explosions 73 | . . . 73 Melee . | . . . . Knockbacks . | . . . . Impact . | . . . . Kinetic . | . . . . Secondary . | . . . . Self-Inflicted Damage . | . . . . Shots . | . . . . Rammed 3 | . 1 2 . Targets Rammed 3 | . 1 2 . Kicked . | . . . . Crushed . | . . . . Highest Temperature 384 | 234 330 384 . Average Temperature 126 | 118 109 190 . Received Heat Transfer 162 | . 162 . . Effects 1 | . . 1 . Shutdowns 1 | . . 1 . Siege Activations . | . . . . Martial Activations . | . . . . Shielding Activations . | . . . . Robots Disrupted . | . . . . Combat Hostiles . | . . . . Robots Corrupted . | . . . . Combat Hostiles . | . . . . Parts Fried . | . . . . Impact Corruptions . | . . . . Robots Melted 1 | . 1 . . Combat Hostiles 1 | . 1 . . Parts Melted 17 | 1 5 2 9 Heat Transferred 4371 | 370 1591 370 2040 Parts Sabotaged . | . . . . Parts Stolen . | . . . . Parts Stripped . | . . . . Power Chain Reactions . | . . . . Alert | -11 -10 -10 -10 ------- Run | Yrd Mat Min Exi Maximum Alert Level . | . . . . Low Security (%) 100 | 100 100 100 . Level 1 . | . . . . Level 2 . | . . . . Level 3 . | . . . . Level 4 . | . . . . Level 5 . | . . . . High Security . | . . . . Max Security . | . . . . Peak Influence 102 | 5 102 60 . Initial . | . . . . Average 12 | . 20 4 . Influence Increases 422 | 10 312 100 . Destroy 0b10 Robot/C 240 | . 180 60 . Destroy 0b10 Robot/NC 10 | 10 . . . Destroy Leader 70 | . 60 10 . Successful Hack 26 | . 26 . . Destroy Structure 1 | . 1 . . Lose Combat Pursuer 75 | . 45 30 . Influence Decreases 422 | 10 310 102 . Entered New Map 2 | . . 2 . Time Decay 420 | 10 310 100 . Squads Dispatched 4 | . 4 . . Investigation 1 | . 1 . . Extermination . | . . . . Reinforcement 3 | . 3 . . Assault . | . . . . Garrison . | . . . . Intercept . | . . . . Searches Triggered . | . . . . Construction Impeded . | . . . . Haulers Reinforced . | . . . . Active Scanning Responses . | . . . . Cargo Convoy Interrupts . | . . . . Stealth | -11 -10 -10 -10 --------- Run | Yrd Mat Min Exi Distress Signals 1 | . 1 . . Communications Jammed . | . . . . Distress Signals . | . . . . Times Spotted 39 | . 21 3 15 Peak Tracking Total 12 | . 4 2 12 Tactical Retreats 6 | . 1 2 3 Traps | -11 -10 -10 -10 ------- Run | Yrd Mat Min Exi Traps Triggered 2 | . 2 . . Indirectly . | . . . . Trap Hack Attempts . | . . . . Triggered . | . . . . Disarmed . | . . . . Reprogrammed . | . . . . Reused . | . . . . Traps Extracted . | . . . . Installed . | . . . . Triggered . | . . . . Machines | -11 -10 -10 -10 ---------- Run | Yrd Mat Min Exi Machines Disabled 16 | . . . 16 Max in Single Turn 4 | . . . 4 Machines Repaired . | . . . . Machines Dismantled . | . . . . Machines Sabotaged . | . . . . Overloaded Fab Kills . | . . . . Hacking | -11 -10 -10 -10 --------- Run | Yrd Mat Min Exi Machines Accessed 9 | . 7 1 1 Terminals 5 | . 5 . . Fabricators . | . . . . Repair Stations 1 | . 1 . . Recycling Units 1 | . 1 . . Scanalyzers . | . . . . Garrison Access . | . . . . Total Hacks 21 | . 19 1 1 Successful 12 | . 10 1 1 Failed 9 | . 9 . . Catastrophic 1 | . 1 . . Database Lockouts . | . . . . Manual 15 | . 14 . 1 Terminals 16 | . 16 . . Fabricators . | . . . . Repair Stations 2 | . 2 . . Recycling Units 1 | . 1 . . Scanalyzers . | . . . . Garrison Access . | . . . . Terminal Hacks 4 | . 2 1 1 Part Schematic 1 | . 1 . . Prototype ID Bank 1 | . 1 . . Open Door 1 | . . 1 . Proto ID Catalog 1 | . . . 1 Fabricator Hacks . | . . . . Repair Station Hacks 2 | . 2 . . Scan Component 1 | . 1 . . Repair 1 | . 1 . . Recycling Unit Hacks 1 | . 1 . . Report Inventory 1 | . 1 . . Scanalyzer . | . . . . Garrison Access Hacks . | . . . . Unauthorized Hacks 5 | . 5 . . Terminals 5 | . 5 . . Botnet 5 | . 5 . . Fabricators . | . . . . Repair Stations . | . . . . Recycling Units . | . . . . Scanalyzers . | . . . . Garrison Access . | . . . . Data Cores Recovered . | . . . . Used . | . . . . Hacking Detections 5 | . 5 . . Full Trace Events . | . . . . Feedback Events . | . . . . Feedback Blocked . | . . . . Robot Schematics Acquired . | . . . . Robots Built . | . . . . Authchips . | . . . . Time . | . . . . Total Robot Build Rating . | . . . . Part Schematics Acquired 1 | . 1 . . Parts Built . | . . . . Authchips . | . . . . Time . | . . . . Total Part Build Rating . | . . . . Parts Repaired 1 | . 1 . . Time 26 | . 26 . . Parts Recycled . | . . . . Recycled Matter . | . . . . Retrieved Matter . | . . . . Retrieved Components . | . . . . Parts Scanalyzed . | . . . . Part Schematics Acquired . | . . . . Parts Damaged . | . . . . Bothacking | -11 -10 -10 -10 ------------ Run | Yrd Mat Min Exi Used RIF Installer . | . . . . Robots Hacked . | . . . . Non-combat . | . . . . Combat . | . . . . Robot Hacks Applied . | . . . . Relay Couplers Released . | . . . . Fabnet Peak Effective % . | . . . . Robots Rewired . | . . . . Allies Hacked . | . . . . Hacks Repelled . | . . . . Allies | -11 -10 -10 -10 -------- Run | Yrd Mat Min Exi Total Allies . | . . . . Largest Group . | . . . . Highest-Rated Group . | . . . . Highest-Rated Ally . | . . . . Total Orders 2 | . . 2 . RETURN 2 | . . 2 . Ally Attacks . | . . . . Total Damage . | . . . . Kills . | . . . . Allies Corrupted . | . . . . Allies Melted . | . . . . Intel | -11 -10 -10 -10 ------- Run | Yrd Mat Min Exi Active Infowar (turns) 2871 | 13 1025 1090 743 Seismic 2871 | 13 1025 1090 743 Robot Analysis Total . | . . . . Derelict Logs Recovered 2 | . . 2 . Drone Launches 2 | . . 2 . Drone Recoveries 2 | . . 2 . Exploration | -11 -10 -10 -10 ------------- Run | Yrd Mat Min Exi Turns Passed 3450 | 97 1273 1144 936 Spaces Moved 1901 | 43 696 689 473 Core 16 | 16 . . . Treads 1885 | 27 696 689 473 Legs . | . . . . Wheels . | . . . . Hover . | . . . . Flight . | . . . . Fastest Speed 50 | 50 160 160 160 Average Speed 160 | 146 160 160 164 Slowest Speed 240 | 200 160 160 240 Overloaded Moves . | . . . . Propulsion Burnouts . | . . . . Robots Hopped . | . . . . Potential Cave-ins . | . . . . Cave-ins Triggered . | . . . . Exploration Rate (%) 73 | 3 100 98 92 Regions Visited 3 Branch Regions 2 Pre-discovered Areas 2 | . . 2 . Known Exits Taken . | . . . . Unknown Exits Taken 3 | 1 1 1 . Scrap Searched 1 | . . 1 . Spaces Dug . | . . . . Terrain Destroyed 87 | . . . 87 Melee . | . . . . Projectile 1 | . . . 1 AOE 86 | . . . 86 Terrain Rammed . | . . . . Walls Destroyed . | . . . . Machines Disabled . | . . . . Actions | -11 -10 -10 -10 --------- Run | Yrd Mat Min Exi Total 2138 | 61 808 715 554 Wait 89 | 2 61 8 18 Move 1898 | 42 695 688 473 Hop . | . . . . Pick Up 18 | 4 11 2 1 Fast Attach 8 | 7 1 . . Attach 3 | . . . 3 Detach 2 | . . . 2 Swap 13 | . 6 4 3 Drop 12 | . 8 3 1 Fire 64 | 6 25 8 25 Melee . | . . . . Ram . | . . . . Kick . | . . . . Crush 3 | . 1 2 . Escape Stasis . | . . . . Rewire 28 | . . . 28 Trap . | . . . . Miscellaneous . | . . . . Route ------- -11/Scrapyard -10/Materials (discovered 5 exits: [*Mat x3] / *Min / [*Sub]) -10/Mines (discovered 3 exits: [*Mat x2] / *Exi) -10/Exiles (discovered 1 exit: [*Min]) History --------- Turn | Location | Event 21 | -11/Scrapyard | Discovered new exit (range 15) 98 | -11/Scrapyard | Entered Materials 305 | -10/Materials | Build established: Mutant 402 | -10/Materials | Discovered new exit (range 4) 572 | -10/Materials | Discovered new exit (range 16) 598 | -10/Materials | Derelicts attacked the area 839 | -10/Materials | Discovered new exit (range 7) 1027 | -10/Materials | Repaired Lgt. Treads 1054 | -10/Materials | Discovered new exit (range 9) 1233 | -10/Materials | Discovered new exit (range 6) 1371 | -10/Materials | Entered Mines 1405 | -10/Mines | Met a Derelict bent on vengeance 1449 | -10/Mines | Discovered new exit (range 9) 1720 | -10/Mines | Assembled infested the area 1725 | -10/Mines | Assisted by a Guerilla fighting off Assembled 1930 | -10/Mines | Discovered new exit (range 5) 2007 | -10/Mines | Learned location of Zion (-6) 2029 | -10/Mines | Learned location of Storage (-9) 2227 | -10/Mines | Found the Drone Emporium 2235 | -10/Mines | Found Prototype Device 2236 | -10/Mines | Identified Splice Drone Bay 2387 | -10/Mines | Deemed a non-threat by the Exiles lab entrance 2387 | -10/Mines | Discovered new exit (range 5) 2515 | -10/Mines | Entered Exiles 2536 | -10/Exiles | Discovered new exit (range 15) 2578 | -10/Exiles | Met 8R-AWN 2603 | -10/Exiles | Met EX-HEX 2745 | -10/Exiles | Met EX-DEC 2772 | -10/Exiles | Met EX-BIN 2795 | -10/Exiles | Aligned with FarCom system 2796 | -10/Exiles | Given EX-Vault access code 2838 | -10/Exiles | Opened EX-Vault 2849 | -10/Exiles | Found YOLO Cannon 2879 | -10/Exiles | Warned to stay clear of 0b10 Research branches 3069 | -10/Exiles | Visited The Gauntlet 3263 | -10/Exiles | Attacked by the Exiles 3365 | -10/Exiles | Destroyed EX-BIN 3394 | -10/Exiles | Core integrity fell below 50% 3404 | -10/Exiles | Destroyed EX-HEX 3415 | -10/Exiles | Lost 3 parts (3n) 3436 | -10/Exiles | Destroyed EX-DEC 3443 | -10/Exiles | Core integrity fell below 20% 3451 | -10/Exiles | Destroyed by 8R-AWN with 8R-AWN's Boregun Last Messages --------------- 03404_ HV Slug penetrates Wall. 03404_ Destroyed Prototype Power Core. 03404_ EX Chip 2 melted. 03404_ EX Chip 1 melted. 03404_ EX-HEX destroyed. 03408_ Penetrated by HV Slug. 03414_ Testing Chamber Shield damaged. 03417_ HV Slug penetrates Machine. 03417_ Penetrated by HV Slug. 03434_ Lgt. Treads destroyed. 03434_ HV Slug penetrates Testing Apparatus. 03436_ EX Chip 2 melted. 03436_ EX-DEC: "This would never have happened if OCT was still around!" 03436_ EX-DEC destroyed. 03438_ Penetrated by HV Slug. 03447_ Critical hit (Destroy). 03447_ Lgt. Nuclear Core destroyed. 03451_ Penetrated by HV Slug. Map ----- +----------------------------------------------------+ | ?????????????????????????????????#"""" | | ?????????????????????????????????## | | ??????????????????????????????????#" | | ??????????????????????????????????#"""" | | ??????????????????????????????????#"" | | ??????????????????????????????????#" " | | ??????????????????????????????????#""" | | ??????????????????????????????????## | | ???????????????????????????????????#"" "" | | ???????????????????????????????????##""" | | ????????????????????????????????????##"""" # | | ?????????????????????????????????????### # | | ???????????????????????????????????????##### ## | | ???????????????????????????????????????????## #? | | ????????????????????????????????????????????# #? | | ????????????????????????????????????????????# #? | | ????????????????????????????????????????????# #? | | ????????????#######???#########????###??????# #? | | ???????????#"""""""#??#"""""""#??#"""""?????# #? | | ????????????"" ""####"""""""#???"""""""???# #? | | ???????????#" "#"""""""" "#?#; """"#??# #? | | ????????????"" ""#""#"" # ; """???# #? | | ????????????"" ""# "#" ; "???# #? | | ??????########"""#;; ;#; #### ## | | ??????#"""" "" """" "" | | ??????#" @ g | | ??????#""" | | ??????#"""" % = & | | ??????#"" | | ??????#""" ! "" | | ??????#"" / " """ " """" | | ??????#####"; ###"""###""#;; ########""" | | ??????????## #"" ""#""#" ""????"" | | ???????????# #""" ""#""#""" ""????"" " | | ???????????#" #" """"""""#" " "#??#""""" | | ???????????#" """"""""#???"""""""????"" "" | | ???????????#"" " """"""#???"""""""#????"""" | | ???????????####" """"""##???????##?#???????#?? | | ??????????????## """????????????????????? | | ???????????????# """????????????????????? | | ???????????????# " ""####????????????????????? | | ???????????????# """""" #???????????????????????? | | | | | | | | | | | | | | | | | +----------------------------------------------------+ Best States ------------- Heat Dissipation 39 Energy Generation 14 Energy Capacity 250 Matter Stores 300 Matter Capacity 300 Sight Range 16 Terrain Scan Density 10 Armor Coverage 150 Evasion (%) 40 Recoil Reduction 2 Item Schematics ----------------- Hcp. Storage Unit | -10/Materials | Hacked Robot Schematics ------------------ None Fabricated ------------ Nothing Repaired ---------- Lgt. Treads | 16% | -10/Materials Alien Tech Used ----------------- None Achievements -------------- None Challenges ------------ None Game ------ Seed TeslaHardlightTube Manual? 0 Play Time 00:27:01 Cumulative 111.2 hours Start 2025.08.13 @ 17:19:06 End 2025.08.13 @ 17:49:07 Sessions 1 Manual Loads 0 Difficulty Rogue Special Mode None Game No. 74 Rogue 74 Adventurer 0 Explorer 0 Win Type - Total 0 Types 0/0/0/0/0/0/0/0/0/0 Lore% 50 Gallery% 42 Achievement% 35 Wizard Run 0 Options --------- Layout 1 ASCII 0 Keyboard 0 Movement Numpad Keybinds 0 Fullscreen 1 Font 24/Smallcaps Map View 50x35 Zoom Use 0% Tactical HUD 1 Map Filters NONE Filters NONE Steam 1 RUN: b366335f-29c1-459f-898b-f982dadabdc7